[Event "Titled Tuesday Blitz November 08 Early 2022"]
[White "Vlassov, Nikolai"]
[Black "Gabrielian, Artur"]
[WhiteFideId "4103360"]
[BlackFideId "4131002"]
[WhiteElo "2324"]
[BlackElo "2432"]
[Result "1/2-1/2"]
[Round "07"]
[TimeControl "180+1"]
[Date "2022.11.09"]
[WhiteClock "0:00:18"]
[BlackClock "0:00:11"]

1. e4 {[%clk 0:03:00]}  c5 {[%clk 0:02:59]} 2. c3 {[%clk 0:03:00]}  Nf6 {[%clk 0:02:59]} 3. e5 {[%clk 0:03:00]}  Nd5 {[%clk 0:02:59]} 4. d4 {[%clk 0:03:01]}  d6 {[%clk 0:02:59]} 5. c4 {[%clk 0:03:00]}  Nb6 {[%clk 0:02:54]} 6. dxc5 {[%clk 0:03:00]}  dxc5 {[%clk 0:02:54]} 7. Qxd8+ {[%clk 0:03:00]}  Kxd8 {[%clk 0:02:55]} 8. Nc3 {[%clk 0:03:01]}  Bf5 {[%clk 0:02:51]} 9. Nf3 {[%clk 0:02:56]}  Nc6 {[%clk 0:02:50]} 10. Bg5 {[%clk 0:02:53]}  h6 {[%clk 0:02:47]} 11. O-O-O+ {[%clk 0:02:51]}  Ke8 {[%clk 0:02:48]} 12. Be3 {[%clk 0:02:43]}  e6 {[%clk 0:02:47]} 13. Nb5 {[%clk 0:02:43]}  Rc8 {[%clk 0:02:47]} 14. Be2 {[%clk 0:02:37]}  Be7 {[%clk 0:02:39]} 15. Nd6+ {[%clk 0:02:32]}  Bxd6 {[%clk 0:02:39]} 16. Rxd6 {[%clk 0:02:10]}  Be4 {[%clk 0:02:33]} 17. Bxc5 {[%clk 0:01:51]}  Nd7 {[%clk 0:02:25]} 18. Ba3 {[%clk 0:01:46]}  Ndxe5 {[%clk 0:02:06]} 19. Nxe5 {[%clk 0:01:45]}  Nxe5 {[%clk 0:02:06]} 20. b3 {[%clk 0:01:36]}  Rd8 {[%clk 0:01:18]} 21. f3 {[%clk 0:01:31]}  Bc6 {[%clk 0:01:11]} 22. Rhd1 {[%clk 0:01:30]}  Rxd6 {[%clk 0:01:11]} 23. Bxd6 {[%clk 0:01:27]}  f6 {[%clk 0:01:08]} 24. Bxe5 {[%clk 0:01:22]}  fxe5 {[%clk 0:01:07]} 25. Kb2 {[%clk 0:01:14]}  Ke7 {[%clk 0:01:07]} 26. Kc3 {[%clk 0:01:14]}  e4 {[%clk 0:01:07]} 27. b4 {[%clk 0:01:05]}  exf3 {[%clk 0:01:07]} 28. gxf3 {[%clk 0:01:05]}  Rf8 {[%clk 0:01:06]} 29. Rd3 {[%clk 0:01:05]}  b6 {[%clk 0:01:06]} 30. b5 {[%clk 0:01:04]}  Bb7 {[%clk 0:01:05]} 31. a4 {[%clk 0:01:04]}  Rf5 {[%clk 0:00:58]} 32. a5 {[%clk 0:00:34]}  bxa5 {[%clk 0:00:58]} 33. Kd4 {[%clk 0:00:27]}  a6 {[%clk 0:00:52]} 34. Ra3 {[%clk 0:00:22]}  axb5 {[%clk 0:00:45]} 35. Rxa5 {[%clk 0:00:22]}  bxc4 {[%clk 0:00:43]} 36. Ra7 {[%clk 0:00:18]}  Rd5+ {[%clk 0:00:43]} 37. Kxc4 {[%clk 0:00:15]}  Rd7 {[%clk 0:00:43]} 38. Kc5 {[%clk 0:00:14]}  Bd5 {[%clk 0:00:41]} 39. Rxd7+ {[%clk 0:00:14]}  Kxd7 {[%clk 0:00:41]} 40. f4 {[%clk 0:00:14]}  Ke7 {[%clk 0:00:40]} 41. Kd4 {[%clk 0:00:14]}  Kf6 {[%clk 0:00:41]} 42. Bd3 {[%clk 0:00:13]}  Bf3 {[%clk 0:00:40]} 43. Ke3 {[%clk 0:00:12]}  Bg4 {[%clk 0:00:40]} 44. h4 {[%clk 0:00:13]}  Bf5 {[%clk 0:00:39]} 45. Be2 {[%clk 0:00:13]}  Kg6 {[%clk 0:00:35]} 46. Bd1 {[%clk 0:00:12]}  Kf6 {[%clk 0:00:33]} 47. Be2 {[%clk 0:00:13]}  Bg6 {[%clk 0:00:28]} 48. Bg4 {[%clk 0:00:12]}  Bf7 {[%clk 0:00:27]} 49. Bh3 {[%clk 0:00:11]}  g6 {[%clk 0:00:20]} 50. Kf3 {[%clk 0:00:11]}  Be8 {[%clk 0:00:18]} 51. Kg3 {[%clk 0:00:11]}  Bc6 {[%clk 0:00:17]} 52. Bg4 {[%clk 0:00:12]}  Bd5 {[%clk 0:00:17]} 53. Bh3 {[%clk 0:00:12]}  Be4 {[%clk 0:00:17]} 54. Bg4 {[%clk 0:00:12]}  Bf5 {[%clk 0:00:17]} 55. Bf3 {[%clk 0:00:13]}  Ke7 {[%clk 0:00:18]} 56. Be2 {[%clk 0:00:12]}  Kd6 {[%clk 0:00:18]} 57. Bd1 {[%clk 0:00:12]}  Kc5 {[%clk 0:00:18]} 58. Be2 {[%clk 0:00:12]}  Kd4 {[%clk 0:00:19]} 59. Bf3 {[%clk 0:00:12]}  Ke3 {[%clk 0:00:19]} 60. Bc6 {[%clk 0:00:12]}  Be4 {[%clk 0:00:18]} 61. Bd7 {[%clk 0:00:12]}  Bf5 {[%clk 0:00:19]} 62. Bc6 {[%clk 0:00:13]}  Kd4 {[%clk 0:00:17]} 63. Be8 {[%clk 0:00:12]}  Kd5 {[%clk 0:00:13]} 64. Ba4 {[%clk 0:00:12]}  Ke4 {[%clk 0:00:13]} 65. Bc6+ {[%clk 0:00:12]}  Ke3 {[%clk 0:00:13]} 66. Bb7 {[%clk 0:00:11]}  Be4 {[%clk 0:00:13]} 67. Bc8 {[%clk 0:00:12]}  Bd5 {[%clk 0:00:13]} 68. Bd7 {[%clk 0:00:12]}  Ke4 {[%clk 0:00:13]} 69. Be8 {[%clk 0:00:12]}  Kf5 {[%clk 0:00:14]} 70. Ba4 {[%clk 0:00:12]}  Be4 {[%clk 0:00:13]} 71. Bb5 {[%clk 0:00:12]}  Kf6 {[%clk 0:00:12]} 72. Bc4 {[%clk 0:00:12]}  Bd5 {[%clk 0:00:12]} 73. Bd3 {[%clk 0:00:12]}  Bc6 {[%clk 0:00:11]} 74. Bc4 {[%clk 0:00:13]}  Be8 {[%clk 0:00:12]} 75. Bd3 {[%clk 0:00:13]}  Ke7 {[%clk 0:00:12]} 76. Be4 {[%clk 0:00:13]}  Kd6 {[%clk 0:00:12]} 77. Bc2 {[%clk 0:00:13]}  Kc5 {[%clk 0:00:12]} 78. Bb1 {[%clk 0:00:13]}  Kd4 {[%clk 0:00:13]} 79. Bc2 {[%clk 0:00:13]}  Ke3 {[%clk 0:00:13]} 80. Bb1 {[%clk 0:00:14]}  Bf7 {[%clk 0:00:12]} 81. Bc2 {[%clk 0:00:14]}  Kd2 {[%clk 0:00:12]} 82. Bb1 {[%clk 0:00:14]}  Be8 {[%clk 0:00:11]} 83. Be4 {[%clk 0:00:14]}  Kc3 {[%clk 0:00:11]} 84. Bb1 {[%clk 0:00:14]}  Kd4 {[%clk 0:00:11]} 85. Bc2 {[%clk 0:00:14]}  e5 {[%clk 0:00:11]} 86. fxe5 {[%clk 0:00:14]}  Kxe5 {[%clk 0:00:11]} 87. Bb1 {[%clk 0:00:15]}  Kf6 {[%clk 0:00:11]} 88. Bc2 {[%clk 0:00:15]}  Bd7 {[%clk 0:00:12]} 89. Bb3 {[%clk 0:00:15]}  Bf5 {[%clk 0:00:13]} 90. Bc4 {[%clk 0:00:16]}  Ke5 {[%clk 0:00:13]} 91. Be2 {[%clk 0:00:16]}  Kd4 {[%clk 0:00:13]} 92. Bf3 {[%clk 0:00:16]}  Ke3 {[%clk 0:00:13]} 93. Bd1 {[%clk 0:00:16]}  Be4 {[%clk 0:00:12]} 94. Bb3 {[%clk 0:00:16]}  Bf5 {[%clk 0:00:11]} 95. Bd5 {[%clk 0:00:16]}  Be4 {[%clk 0:00:11]} 96. Be6 {[%clk 0:00:16]}  Bf5 {[%clk 0:00:11]} 97. Bf7 {[%clk 0:00:17]}  Be4 {[%clk 0:00:11]} 98. Bg8 {[%clk 0:00:17]}  Bf5 {[%clk 0:00:11]} 99. Bf7 {[%clk 0:00:17]}  Be4 {[%clk 0:00:11]} 100. Bg8 {[%clk 0:00:18]}  Bf5 {[%clk 0:00:11]} 101. Bf7 {[%clk 0:00:18]} 1/2-1/2


[Site "https://www.chess.com"]

[Event "Titled Tuesday Blitz November 08 Early 2022"]
[White "Wagner, Dennis"]
[Black "Deac, Bogdan-Daniel"]
[WhiteFideId "24650684"]
[BlackFideId "1226380"]
[WhiteElo "2470"]
[BlackElo "2648"]
[Result "0-1"]
[Round "07"]
[TimeControl "180+1"]
[Date "2022.11.08"]
[WhiteClock "0:00:09"]
[BlackClock "0:00:05"]

1. e4 {[%clk 0:03:00]}  c6 {[%clk 0:02:59]} 2. d4 {[%clk 0:02:58]}  d5 {[%clk 0:02:59]} 3. e5 {[%clk 0:02:59]}  Bf5 {[%clk 0:02:59]} 4. Nf3 {[%clk 0:03:00]}  e6 {[%clk 0:02:59]} 5. Be2 {[%clk 0:03:00]}  c5 {[%clk 0:02:59]} 6. Be3 {[%clk 0:02:58]}  cxd4 {[%clk 0:02:57]} 7. Nxd4 {[%clk 0:02:58]}  Ne7 {[%clk 0:02:58]} 8. Bb5+ {[%clk 0:02:54]}  Nbc6 {[%clk 0:02:53]} 9. O-O {[%clk 0:02:49]}  a6 {[%clk 0:02:51]} 10. Bxc6+ {[%clk 0:02:49]}  Nxc6 {[%clk 0:02:52]} 11. Nxf5 {[%clk 0:02:45]}  exf5 {[%clk 0:02:53]} 12. Bd4 {[%clk 0:02:40]}  Be7 {[%clk 0:02:49]} 13. c3 {[%clk 0:02:40]}  O-O {[%clk 0:02:44]} 14. Qd3 {[%clk 0:02:40]}  g6 {[%clk 0:02:35]} 15. Nd2 {[%clk 0:02:40]}  Nxd4 {[%clk 0:02:35]} 16. Qxd4 {[%clk 0:02:34]}  Rc8 {[%clk 0:02:34]} 17. Rfd1 {[%clk 0:02:29]}  Bc5 {[%clk 0:02:29]} 18. Qd3 {[%clk 0:02:29]}  Qb6 {[%clk 0:02:29]} 19. Rf1 {[%clk 0:01:22]}  Rfe8 {[%clk 0:02:00]} 20. b4 {[%clk 0:01:07]}  Bf8 {[%clk 0:01:57]} 21. Qxd5 {[%clk 0:01:06]}  Rxc3 {[%clk 0:01:46]} 22. Nc4 {[%clk 0:00:50]}  Qb5 {[%clk 0:01:13]} 23. Qxb5 {[%clk 0:00:45]}  axb5 {[%clk 0:01:12]} 24. Nd6 {[%clk 0:00:32]}  Rxe5 {[%clk 0:01:11]} 25. Nxb7 {[%clk 0:00:25]}  Bxb4 {[%clk 0:01:09]} 26. Rab1 {[%clk 0:00:14]}  Bf8 {[%clk 0:01:04]} 27. Na5 {[%clk 0:00:13]}  b4 {[%clk 0:00:50]} 28. Nb3 {[%clk 0:00:12]}  Re2 {[%clk 0:00:50]} 29. g3 {[%clk 0:00:08]}  Rxa2 {[%clk 0:00:48]} 30. Kg2 {[%clk 0:00:09]}  h5 {[%clk 0:00:43]} 31. h4 {[%clk 0:00:09]}  Kg7 {[%clk 0:00:39]} 32. Nd4 {[%clk 0:00:09]}  Bc5 {[%clk 0:00:31]} 33. Nb3 {[%clk 0:00:09]}  Bb6 {[%clk 0:00:31]} 34. Nc1 {[%clk 0:00:08]}  Ra4 {[%clk 0:00:15]} 35. Rd1 {[%clk 0:00:08]}  Rc4 {[%clk 0:00:05]} 36. Rd2 {[%clk 0:00:08]}  Bd4 {[%clk 0:00:05]} 37. Nd3 {[%clk 0:00:08]}  Bc3 {[%clk 0:00:05]} 38. Re2 {[%clk 0:00:08]}  Rd4 {[%clk 0:00:05]} 39. Nf4 {[%clk 0:00:08]}  Re4 {[%clk 0:00:05]} 40. Kf3 {[%clk 0:00:05]}  Rxe2 {[%clk 0:00:04]} 41. Nxe2 {[%clk 0:00:06]}  Ra3 {[%clk 0:00:05]} 42. Kg2 {[%clk 0:00:04]}  Ra2 {[%clk 0:00:05]} 43. Nxc3 {[%clk 0:00:03]}  bxc3 {[%clk 0:00:05]} 44. Rb3 {[%clk 0:00:04]}  Rc2 {[%clk 0:00:03]} 45. Rb7 {[%clk 0:00:04]}  Rc1 {[%clk 0:00:03]} 46. Rc7 {[%clk 0:00:05]}  f4 {[%clk 0:00:04]} 47. gxf4 {[%clk 0:00:05]}  c2 {[%clk 0:00:04]} 48. Kf3 {[%clk 0:00:05]}  Kf6 {[%clk 0:00:04]} 49. Rc5 {[%clk 0:00:06]}  Ke6 {[%clk 0:00:04]} 50. Rc7 {[%clk 0:00:06]}  Kd6 {[%clk 0:00:04]} 51. Rc8 {[%clk 0:00:05]}  Kd5 {[%clk 0:00:04]} 52. Rd8+ {[%clk 0:00:06]}  Kc4 {[%clk 0:00:05]} 53. Rc8+ {[%clk 0:00:06]}  Kd3 {[%clk 0:00:05]} 54. Rd8+ {[%clk 0:00:07]}  Kc3 {[%clk 0:00:05]} 55. Rc8+ {[%clk 0:00:07]}  Kd2 {[%clk 0:00:05]} 56. Rd8+ {[%clk 0:00:08]}  Ke1 {[%clk 0:00:05]} 57. Rc8 {[%clk 0:00:08]}  Kf1 {[%clk 0:00:04]} 58. Kg3 {[%clk 0:00:09]}  Ke2 {[%clk 0:00:04]} 59. Kg2 {[%clk 0:00:09]}  Kd3 {[%clk 0:00:03]} 60. Rd8+ {[%clk 0:00:09]}  Ke4 {[%clk 0:00:03]} 61. Rc8 {[%clk 0:00:10]}  Kxf4 {[%clk 0:00:03]} 62. Rc7 {[%clk 0:00:10]}  Ke5 {[%clk 0:00:03]} 63. Rc8 {[%clk 0:00:10]}  Kd6 {[%clk 0:00:04]} 64. Rc3 {[%clk 0:00:10]}  f6 {[%clk 0:00:04]} 65. Rc4 {[%clk 0:00:10]}  Kd5 {[%clk 0:00:04]} 66. Rc8 {[%clk 0:00:10]}  Ke5 {[%clk 0:00:04]} 67. Rc7 {[%clk 0:00:10]}  Kf5 {[%clk 0:00:04]} 68. Rc5+ {[%clk 0:00:10]}  Ke4 {[%clk 0:00:04]} 69. Rc8 {[%clk 0:00:10]}  f5 {[%clk 0:00:04]} 70. Rc7 {[%clk 0:00:08]}  f4 {[%clk 0:00:04]} 71. f3+ {[%clk 0:00:06]}  Kd3 {[%clk 0:00:03]} 72. Rd7+ {[%clk 0:00:06]}  Kc4 {[%clk 0:00:03]} 73. Rc7+ {[%clk 0:00:07]}  Kd5 {[%clk 0:00:03]} 74. Rd7+ {[%clk 0:00:07]}  Ke6 {[%clk 0:00:04]} 75. Rc7 {[%clk 0:00:07]}  Kf6 {[%clk 0:00:04]} 76. Rc8 {[%clk 0:00:08]}  Ke6 {[%clk 0:00:02]} 77. Rc7 {[%clk 0:00:07]}  Kd5 {[%clk 0:00:02]} 78. Rc8 {[%clk 0:00:08]}  Kd6 {[%clk 0:00:03]} 79. Rc3 {[%clk 0:00:07]}  Kd5 {[%clk 0:00:03]} 80. Rc8 {[%clk 0:00:08]}  Kd4 {[%clk 0:00:03]} 81. Rc7 {[%clk 0:00:08]}  Kd3 {[%clk 0:00:03]} 82. Rd7+ {[%clk 0:00:08]}  Kc4 {[%clk 0:00:03]} 83. Rc7+ {[%clk 0:00:09]}  Kb3 {[%clk 0:00:03]} 84. Rb7+ {[%clk 0:00:09]}  Ka4 {[%clk 0:00:03]} 85. Rc7 {[%clk 0:00:09]}  Kb4 {[%clk 0:00:03]} 86. Rc8 {[%clk 0:00:09]}  Kb3 {[%clk 0:00:03]} 87. Rb8+ {[%clk 0:00:10]}  Kc4 {[%clk 0:00:03]} 88. Rc8+ {[%clk 0:00:10]}  Kd5 {[%clk 0:00:03]} 89. Rd8+ {[%clk 0:00:10]}  Ke6 {[%clk 0:00:04]} 90. Rc8 {[%clk 0:00:11]}  g5 {[%clk 0:00:03]} 91. hxg5 {[%clk 0:00:11]}  Kf5 {[%clk 0:00:04]} 92. Rc5+ {[%clk 0:00:11]}  Kg6 {[%clk 0:00:04]} 93. Kh2 {[%clk 0:00:12]}  h4 {[%clk 0:00:04]} 94. Kg2 {[%clk 0:00:12]}  h3+ {[%clk 0:00:04]} 95. Kh2 {[%clk 0:00:12]}  Kh5 {[%clk 0:00:05]} 96. Rc6 {[%clk 0:00:12]}  Kxg5 {[%clk 0:00:05]} 97. Rc5+ {[%clk 0:00:12]}  Kf6 {[%clk 0:00:05]} 98. Rc6+ {[%clk 0:00:13]}  Ke5 {[%clk 0:00:05]} 99. Rc8 {[%clk 0:00:12]}  Kd4 {[%clk 0:00:06]} 100. Rd8+ {[%clk 0:00:11]}  Ke3 {[%clk 0:00:05]} 101. Re8+ {[%clk 0:00:09]}  Kxf3 {[%clk 0:00:05]} 102. Re1 {[%clk 0:00:09]}  Rd1 {[%clk 0:00:05]} 0-1


[Site "https://www.chess.com"]

[Event "Titled Tuesday Blitz November 08 Early 2022"]
[White "Weetik, Vjacheslav"]
[Black "Grandelius, Nils"]
[WhiteFideId "4153472"]
[BlackFideId "1710400"]
[WhiteElo "2469"]
[BlackElo "2617"]
[Result "1-0"]
[Round "07"]
[TimeControl "180+1"]
[Date "2022.11.09"]
[WhiteClock "0:00:06"]
[BlackClock "0:00:06"]

1. d4 {[%clk 0:02:59]}  f5 {[%clk 0:02:58]} 2. g3 {[%clk 0:02:59]}  Nf6 {[%clk 0:02:58]} 3. Bg2 {[%clk 0:03:00]}  g6 {[%clk 0:02:56]} 4. c3 {[%clk 0:03:00]}  Bg7 {[%clk 0:02:54]} 5. Qb3 {[%clk 0:03:00]}  Nc6 {[%clk 0:02:54]} 6. Nd2 {[%clk 0:02:59]}  e5 {[%clk 0:02:49]} 7. dxe5 {[%clk 0:02:57]}  Nxe5 {[%clk 0:02:50]} 8. Ngf3 {[%clk 0:02:56]}  Nf7 {[%clk 0:02:44]} 9. Nc4 {[%clk 0:02:26]}  d5 {[%clk 0:02:32]} 10. Nce5 {[%clk 0:02:22]}  Nd6 {[%clk 0:02:19]} 11. Bf4 {[%clk 0:01:59]}  Qe7 {[%clk 0:02:15]} 12. O-O {[%clk 0:01:53]}  O-O {[%clk 0:02:04]} 13. Rad1 {[%clk 0:01:52]}  Kh8 {[%clk 0:02:04]} 14. Qa3 {[%clk 0:01:07]}  Be6 {[%clk 0:01:55]} 15. Nd4 {[%clk 0:01:05]}  Bg8 {[%clk 0:01:50]} 16. Nd3 {[%clk 0:01:00]}  Rfd8 {[%clk 0:01:42]} 17. Bg5 {[%clk 0:00:45]}  c6 {[%clk 0:01:33]} 18. h4 {[%clk 0:00:39]}  h6 {[%clk 0:01:31]} 19. Bc1 {[%clk 0:00:33]}  Nfe4 {[%clk 0:01:27]} 20. Nf4 {[%clk 0:00:32]}  Bf7 {[%clk 0:01:27]} 21. Rfe1 {[%clk 0:00:13]}  Qf6 {[%clk 0:01:25]} 22. Nf3 {[%clk 0:00:11]}  Re8 {[%clk 0:01:19]} 23. Qa4 {[%clk 0:00:12]}  Nc4 {[%clk 0:01:12]} 24. Qc2 {[%clk 0:00:12]}  g5 {[%clk 0:01:05]} 25. hxg5 {[%clk 0:00:12]}  hxg5 {[%clk 0:01:06]} 26. Nd3 {[%clk 0:00:11]}  Bh6 {[%clk 0:01:04]} 27. b3 {[%clk 0:00:09]}  Ncd6 {[%clk 0:01:01]} 28. c4 {[%clk 0:00:09]}  Kg8 {[%clk 0:00:59]} 29. Bb2 {[%clk 0:00:09]}  Qg6 {[%clk 0:00:59]} 30. Nde5 {[%clk 0:00:07]}  Qh5 {[%clk 0:00:55]} 31. Nxf7 {[%clk 0:00:08]}  Qxf7 {[%clk 0:00:51]} 32. cxd5 {[%clk 0:00:08]}  cxd5 {[%clk 0:00:52]} 33. Qd3 {[%clk 0:00:08]}  Rad8 {[%clk 0:00:26]} 34. Qxd5 {[%clk 0:00:08]}  Qxd5 {[%clk 0:00:21]} 35. Rxd5 {[%clk 0:00:09]}  Nxf2 {[%clk 0:00:22]} 36. Rxd6 {[%clk 0:00:08]}  Rxd6 {[%clk 0:00:22]} 37. Kxf2 {[%clk 0:00:08]}  g4 {[%clk 0:00:22]} 38. Nh4 {[%clk 0:00:07]}  Be3+ {[%clk 0:00:20]} 39. Kf1 {[%clk 0:00:08]}  Rd7 {[%clk 0:00:15]} 40. Bf6 {[%clk 0:00:04]}  Re6 {[%clk 0:00:11]} 41. Bc3 {[%clk 0:00:03]}  Kh7 {[%clk 0:00:11]} 42. Rb1 {[%clk 0:00:03]}  Kh6 {[%clk 0:00:10]} 43. Ke1 {[%clk 0:00:03]}  Kg5 {[%clk 0:00:10]} 44. Bf1 {[%clk 0:00:04]}  f4 {[%clk 0:00:10]} 45. Ng2 {[%clk 0:00:04]}  Kf5 {[%clk 0:00:02]} 46. gxf4 {[%clk 0:00:04]}  Bxf4 {[%clk 0:00:02]} 47. Nxf4 {[%clk 0:00:04]}  Kxf4 {[%clk 0:00:03]} 48. Kf2 {[%clk 0:00:04]}  g3+ {[%clk 0:00:03]} 49. Kg2 {[%clk 0:00:04]}  Kg4 {[%clk 0:00:04]} 50. Rc1 {[%clk 0:00:04]}  Rf7 {[%clk 0:00:03]} 51. Be1 {[%clk 0:00:03]}  Re4 {[%clk 0:00:03]} 52. Rc3 {[%clk 0:00:03]}  Ref4 {[%clk 0:00:03]} 53. Rxg3+ {[%clk 0:00:03]}  Kh5 {[%clk 0:00:03]} 54. Rf3 {[%clk 0:00:04]}  Kg6 {[%clk 0:00:03]} 55. Rxf4 {[%clk 0:00:03]}  Rxf4 {[%clk 0:00:03]} 56. e3 {[%clk 0:00:04]}  Rf5 {[%clk 0:00:04]} 57. Bd3 {[%clk 0:00:04]}  Kg5 {[%clk 0:00:04]} 58. Bxf5 {[%clk 0:00:05]}  Kxf5 {[%clk 0:00:05]} 59. Kf3 {[%clk 0:00:06]}  Ke5 {[%clk 0:00:05]} 60. e4 {[%clk 0:00:06]}  Ke6 {[%clk 0:00:06]} 61. Kf4 {[%clk 0:00:06]} 1-0


[Site "https://www.chess.com"]

[Event "Titled Tuesday Blitz November 08 Early 2022"]
[White "Wieczorek, Oskar"]
[Black "Harsha Bharathakoti"]
[WhiteFideId "1133950"]
[BlackFideId "5078776"]
[WhiteElo "2404"]
[BlackElo "2523"]
[Result "1-0"]
[Round "07"]
[TimeControl "180+1"]
[Date "2022.11.08"]
[WhiteClock "0:00:13"]
[BlackClock "0:00:10"]

1. e4 {[%clk 0:03:00]}  c5 {[%clk 0:02:54]} 2. Nf3 {[%clk 0:03:00]}  Nc6 {[%clk 0:02:55]} 3. b4 {[%clk 0:03:01]}  cxb4 {[%clk 0:02:49]} 4. d4 {[%clk 0:03:01]}  d5 {[%clk 0:02:40]} 5. exd5 {[%clk 0:03:02]}  Qxd5 {[%clk 0:02:41]} 6. c4 {[%clk 0:03:02]}  bxc3 {[%clk 0:02:31]} 7. Nxc3 {[%clk 0:03:01]}  Qa5 {[%clk 0:02:29]} 8. Rb1 {[%clk 0:03:02]}  e6 {[%clk 0:02:01]} 9. Bd2 {[%clk 0:02:59]}  Nf6 {[%clk 0:01:58]} 10. Ne4 {[%clk 0:02:58]}  Qxa2 {[%clk 0:01:46]} 11. Nxf6+ {[%clk 0:02:43]}  gxf6 {[%clk 0:01:47]} 12. Bb5 {[%clk 0:02:43]}  Bd7 {[%clk 0:01:43]} 13. O-O {[%clk 0:02:43]}  Be7 {[%clk 0:01:39]} 14. Ba4 {[%clk 0:02:30]}  Qd5 {[%clk 0:00:58]} 15. Rxb7 {[%clk 0:02:21]}  O-O {[%clk 0:00:57]} 16. Bb3 {[%clk 0:01:58]}  Qd6 {[%clk 0:00:57]} 17. Bh6 {[%clk 0:01:55]}  Rfb8 {[%clk 0:00:52]} 18. Rxb8+ {[%clk 0:00:56]}  Rxb8 {[%clk 0:00:51]} 19. Ba4 {[%clk 0:00:35]}  Kh8 {[%clk 0:00:37]} 20. Qd2 {[%clk 0:00:33]}  Rd8 {[%clk 0:00:22]} 21. Bc2 {[%clk 0:00:22]}  Nb4 {[%clk 0:00:20]} 22. Bb1 {[%clk 0:00:21]}  Bc6 {[%clk 0:00:20]} 23. Bf4 {[%clk 0:00:19]}  Qd7 {[%clk 0:00:16]} 24. Bg3 {[%clk 0:00:14]}  a5 {[%clk 0:00:13]} 25. Qh6 {[%clk 0:00:13]}  f5 {[%clk 0:00:11]} 26. Be5+ {[%clk 0:00:14]}  f6 {[%clk 0:00:10]} 27. Ng5 {[%clk 0:00:13]} 1-0


[Site "https://www.chess.com"]

[Event "Titled Tuesday Blitz November 08 Early 2022"]
[White "Zaksaite, Salomeja"]
[Black "Sernecki, Franciszek"]
[WhiteFideId "12801496"]
[BlackFideId "1169297"]
[WhiteElo "2079"]
[BlackElo "2210"]
[Result "0-1"]
[Round "07"]
[TimeControl "180+1"]
[Date "2022.11.09"]
[WhiteClock "0:00:01"]
[BlackClock "0:01:04"]

1. e4 {[%clk 0:02:57]}  c5 {[%clk 0:02:59]} 2. Nf3 {[%clk 0:02:56]}  e6 {[%clk 0:02:59]} 3. g3 {[%clk 0:02:56]}  g6 {[%clk 0:02:58]} 4. d4 {[%clk 0:02:52]}  Bg7 {[%clk 0:02:57]} 5. Bg2 {[%clk 0:02:49]}  cxd4 {[%clk 0:02:56]} 6. Nxd4 {[%clk 0:02:49]}  Nc6 {[%clk 0:02:57]} 7. Nb5 {[%clk 0:02:46]}  d5 {[%clk 0:02:55]} 8. exd5 {[%clk 0:02:44]}  exd5 {[%clk 0:02:56]} 9. Qxd5 {[%clk 0:02:33]}  Qe7+ {[%clk 0:02:56]} 10. Qe4 {[%clk 0:02:27]}  Be6 {[%clk 0:02:55]} 11. O-O {[%clk 0:02:23]}  a6 {[%clk 0:02:54]} 12. N5c3 {[%clk 0:02:16]}  Nf6 {[%clk 0:02:53]} 13. Qh4 {[%clk 0:02:09]}  h6 {[%clk 0:02:46]} 14. Nd2 {[%clk 0:01:35]}  g5 {[%clk 0:02:41]} 15. Qa4 {[%clk 0:01:34]}  O-O {[%clk 0:02:39]} 16. Nde4 {[%clk 0:01:01]}  b5 {[%clk 0:02:35]} 17. Nxf6+ {[%clk 0:00:59]}  Bxf6 {[%clk 0:02:32]} 18. Qe4 {[%clk 0:00:57]}  Nd4 {[%clk 0:02:28]} 19. Be3 {[%clk 0:00:43]}  Rad8 {[%clk 0:02:26]} 20. Rad1 {[%clk 0:00:41]}  b4 {[%clk 0:02:12]} 21. Na4 {[%clk 0:00:20]}  Ne2+ {[%clk 0:01:46]} 22. Kh1 {[%clk 0:00:19]}  Rxd1 {[%clk 0:01:20]} 23. Rxd1 {[%clk 0:00:20]}  Re8 {[%clk 0:01:20]} 24. Bc5 {[%clk 0:00:11]}  Nxg3+ {[%clk 0:01:19]} 25. hxg3 {[%clk 0:00:08]}  Qc7 {[%clk 0:01:20]} 26. Qc6 {[%clk 0:00:05]}  Qb8 {[%clk 0:01:18]} 27. Nb6 {[%clk 0:00:04]}  Bxb2 {[%clk 0:01:15]} 28. Nd7 {[%clk 0:00:04]}  Qc8 {[%clk 0:01:07]} 29. Qxc8 {[%clk 0:00:03]}  Rxc8 {[%clk 0:01:08]} 30. Bxb4 {[%clk 0:00:03]}  Bxa2 {[%clk 0:01:06]} 31. Nc5 {[%clk 0:00:01]}  a5 {[%clk 0:01:04]} 32. Bxa5 {[%clk 0:00:01]}  Rxc5 {[%clk 0:01:04]} 0-1


[Site "https://www.chess.com"]

[Event "Titled Tuesday Blitz November 08 Early 2022"]
[White "Al-Tarboush, Ward"]
[Black "Jaskolka, Tomasz"]
[WhiteFideId "7601450"]
[BlackFideId "1170791"]
[WhiteElo "2273"]
[BlackElo "2126"]
[Result "1-0"]
[Round "08"]
[TimeControl "180+1"]
[Date "2022.11.09"]
[WhiteClock "0:02:14"]
[BlackClock "0:01:40"]

1. e4 {[%clk 0:02:54]}  c5 {[%clk 0:02:57]} 2. Nf3 {[%clk 0:02:54]}  e6 {[%clk 0:02:57]} 3. d4 {[%clk 0:02:54]}  cxd4 {[%clk 0:02:58]} 4. Nxd4 {[%clk 0:02:55]}  Nc6 {[%clk 0:02:58]} 5. Nc3 {[%clk 0:02:56]}  Qc7 {[%clk 0:02:58]} 6. Be3 {[%clk 0:02:55]}  a6 {[%clk 0:02:59]} 7. Qd2 {[%clk 0:02:56]}  Nf6 {[%clk 0:02:59]} 8. O-O-O {[%clk 0:02:56]}  b5 {[%clk 0:02:53]} 9. Bf4 {[%clk 0:02:55]}  Qb6 {[%clk 0:02:39]} 10. Nxc6 {[%clk 0:02:45]}  dxc6 {[%clk 0:02:39]} 11. Kb1 {[%clk 0:02:27]}  Ra7 {[%clk 0:02:29]} 12. e5 {[%clk 0:02:25]}  Nd5 {[%clk 0:02:26]} 13. Bg3 {[%clk 0:02:25]}  Bc5 {[%clk 0:02:16]} 14. Ne4 {[%clk 0:02:23]}  O-O {[%clk 0:02:14]} 15. Bd3 {[%clk 0:02:20]}  h6 {[%clk 0:02:09]} 16. Nxc5 {[%clk 0:02:18]}  Qxc5 {[%clk 0:02:09]} 17. f4 {[%clk 0:02:19]}  Qe3 {[%clk 0:02:03]} 18. Qxe3 {[%clk 0:02:17]}  Nxe3 {[%clk 0:02:04]} 19. Bf2 {[%clk 0:02:18]}  Nxd1 {[%clk 0:01:53]} 20. Bxa7 {[%clk 0:02:18]}  Nxb2 {[%clk 0:01:54]} 21. Kxb2 {[%clk 0:02:18]}  Bb7 {[%clk 0:01:53]} 22. Bc5 {[%clk 0:02:18]}  Rd8 {[%clk 0:01:53]} 23. Kc1 {[%clk 0:02:17]}  Rd5 {[%clk 0:01:47]} 24. Bf2 {[%clk 0:02:17]}  g6 {[%clk 0:01:44]} 25. Rd1 {[%clk 0:02:17]}  c5 {[%clk 0:01:41]} 26. Be2 {[%clk 0:02:14]}  c4 {[%clk 0:01:39]} 27. Rxd5 {[%clk 0:02:14]}  Bxd5 {[%clk 0:01:40]} 28. Bf3 {[%clk 0:02:14]} 1-0


[Site "https://www.chess.com"]

[Event "Titled Tuesday Blitz November 08 Early 2022"]
[White "Antonova, Nadezhda"]
[Black "Akylbekov, Nasyr"]
[WhiteFideId "14700182"]
[BlackFideId "13800353"]
[WhiteElo "1813"]
[BlackElo "2310"]
[Result "1-0"]
[Round "08"]
[TimeControl "180+1"]
[Date "2022.11.09"]
[WhiteClock "0:01:47"]
[BlackClock "0:00:18"]

1. Nf3 {[%clk 0:02:59]}  Nf6 {[%clk 0:02:42]} 2. b3 {[%clk 0:02:59]}  b6 {[%clk 0:02:33]} 3. g3 {[%clk 0:02:58]}  Bb7 {[%clk 0:02:30]} 4. Bg2 {[%clk 0:02:59]}  g6 {[%clk 0:02:23]} 5. Bb2 {[%clk 0:02:59]}  Bg7 {[%clk 0:02:21]} 6. O-O {[%clk 0:03:00]}  O-O {[%clk 0:02:21]} 7. c4 {[%clk 0:03:00]}  d6 {[%clk 0:02:21]} 8. d4 {[%clk 0:03:00]}  Nbd7 {[%clk 0:02:09]} 9. Nc3 {[%clk 0:02:50]}  Re8 {[%clk 0:02:05]} 10. Re1 {[%clk 0:02:43]}  e5 {[%clk 0:01:50]} 11. dxe5 {[%clk 0:02:36]}  Nxe5 {[%clk 0:01:32]} 12. Nxe5 {[%clk 0:02:31]}  Rxe5 {[%clk 0:01:31]} 13. Bxb7 {[%clk 0:02:31]}  Rb8 {[%clk 0:00:36]} 14. Bg2 {[%clk 0:02:29]}  Qe7 {[%clk 0:00:29]} 15. Nd5 {[%clk 0:02:17]}  Nxd5 {[%clk 0:00:27]} 16. Bxd5 {[%clk 0:02:10]}  Rxd5 {[%clk 0:00:26]} 17. cxd5 {[%clk 0:02:03]}  Bxb2 {[%clk 0:00:26]} 18. Rb1 {[%clk 0:02:04]}  Bc3 {[%clk 0:00:26]} 19. Rf1 {[%clk 0:02:03]}  Re8 {[%clk 0:00:24]} 20. e3 {[%clk 0:02:03]}  a5 {[%clk 0:00:23]} 21. Qd3 {[%clk 0:02:01]}  Bb4 {[%clk 0:00:21]} 22. Rbc1 {[%clk 0:01:57]}  Bc5 {[%clk 0:00:21]} 23. Rc2 {[%clk 0:01:55]}  h5 {[%clk 0:00:18]} 24. h4 {[%clk 0:01:47]} 1-0


[Site "https://www.chess.com"]